[Event "German Bundesliga 2023-24"]
[Site "Germany"]
[Date "2024.02.03"]
[Round "7.12"]
[White "Schulze, Torben"]
[Black "Oleksiyenko, Mykhaylo"]
[Result "1/2-1/2"]
[ECO "B50"]
[WhiteElo "2325"]
[BlackElo "2567"]
[Annotator "ChessBase"]
[PlyCount "66"]
[EventDate "2023.10.20"]
[EventType "team-tourn"]
[EventCountry "GER"]
[SourceTitle "playchess.com"]
[Source "ChessBase"]
[SourceQuality "1"]
[TimeControl "40/6000+30:3000+30"]

1. e4 {[%emt 0:00:04]} c5 {[%emt 0:00:16]} 2. Nf3 {[%emt 0:00:07]} d6 {[%emt 0:00:46]} 3. Nc3 {[%emt 0:00:34]} Nf6 {[%emt 0:00:17]} 4. e5 {[%emt 0:01:28]} dxe5 {[%emt 0:00:05]} 5. Nxe5 {[%emt 0:00:08]} a6 {[%emt 0:02:08]} 6. a4 {[%emt 0:14:19]} Qc7 {[%emt 0:06:04]} 7. Nc4 {[%emt 0:04:20]} Nc6 {[%emt 0:02:05]} 8. d3 {[%emt 0:03:59]} Bg4 {[%emt 0:15:55]} 9. Be2 {[%emt 0:03:28]} Bxe2 {[%emt 0:04:39]} 10. Nxe2 {[%emt 0:01:35]} e6 {[%emt 0:01:50]} 11. c3 {[%emt 0:22:13]} Be7 {[%emt 0:02:05]} 12. O-O {[%emt 0:04:37]} O-O {[%emt 0:00:31]} 13. a5 {[%emt 0:03:23]} Rad8 {[%emt 0:03:41]} 14. Qc2 {[%emt 0:05:47]} Ng4 {[%emt 0:12:23]} 15. Bf4 {[%emt 0:07:20]} e5 {[%emt 0:03:10]} 16. Bg3 {[%emt 0:01:01]} f5 {[%emt 0:06:41]} 17. f3 {[%emt 0:08:35]} Nf6 {[%emt 0:03:44]} 18. Rfe1 {[%emt 0:01:34]} Nh5 {[%emt 0:05:20]} 19. Bf2 {[%emt 0:00:40]} Kh8 {[%emt 0:01:54]} 20. Nc1 {[%emt 0:05:33]} Nf4 {[%emt 0:02:03]} 21. Bg3 {[%emt 0:05:11]} g5 {[%emt 0:04:56]} 22. Kh1 {[%emt 0:05:30]} Rg8 {[%emt 0:05:05]} 23. Re3 {[%emt 0:06:45]} Ng6 {[%emt 0:04:27]} 24. Bf2 {[%emt 0:00:18]} Qd7 {[%emt 0:02:38]} 25. Nb3 {[%emt 0:00:50]} g4 {[%emt 0:03:14]} 26. fxg4 {[%emt 0:00:09]} f4 {[%emt 0:00:28]} 27. Rh3 {[%emt 0:01:52]} Qxg4 {[%emt 0:01:30]} 28. Rg1 {[%emt 0:01:57]} Rg7 {[%emt 0:09:49]} 29. Nxc5 {[%emt 0:00:39]} Bxc5 {[%emt 0:01:00]} 30. Bxc5 {[%emt 0:00:01]} Nh4 {[%emt 0:00:02]} 31. Qf2 {[%emt 0:01:18]} Nf5 {[%emt 0:00:42]} 32. Qf3 {[%emt 0:00:34]} Qg5 {[%emt 0:01:19]} 33. Bf2 {[%emt 0:00:30]} Rgd7 {[%emt 0:01:03]} 1/2-1/2

[Event "German Bundesliga 2023-24"]
[Site "Germany"]
[Date "2024.02.03"]
[Round "7.13"]
[White "Cornette, Matthieu"]
[Black "Hoeffer, David"]
[Result "1-0"]
[ECO "C78"]
[WhiteElo "2588"]
[BlackElo "2323"]
[Annotator "ChessBase"]
[PlyCount "57"]
[EventDate "2023.10.20"]
[EventType "team-tourn"]
[EventCountry "GER"]
[SourceTitle "playchess.com"]
[Source "ChessBase"]
[SourceQuality "1"]
[TimeControl "40/6000+30:3000+30"]

1. e4 {[%emt 0:00:08]} e5 {[%emt 0:00:13]} 2. Nf3 {[%emt 0:00:09]} Nc6 {[%emt 0:00:08]} 3. Bb5 {[%emt 0:00:57]} a6 {[%emt 0:00:10]} 4. Ba4 {[%emt 0:00:07]} Nf6 {[%emt 0:00:06]} 5. O-O {[%emt 0:00:28]} Bc5 {[%emt 0:00:06]} 6. c3 {[%emt 0:01:02]} O-O {[%emt 0:00:10]} 7. d4 {[%emt 0:01:03]} Ba7 {[%emt 0:00:06]} 8. Re1 {[%emt 0:01:34]} d6 {[%emt 0:00:51]} 9. h3 {[%emt 0:00:45]} Re8 {[%emt 0:01:41]} 10. Be3 {[%emt 0:03:05]} Bd7 {[%emt 0:05:19]} 11. Nbd2 {[%emt 0:21:35]} exd4 {[%emt 0:14:11]} 12. cxd4 {[%emt 0:00:56]} Nxe4 {[%emt 0:18:13]} 13. d5 {[%emt 0:18:52]} Nxd2 {[%emt 0:04:48]} 14. dxc6 {[%emt 0:00:11]} Nxf3+ {[%emt 0:00:08]} 15. Qxf3 {[%emt 0:00:07]} Bxc6 {[%emt 0:00:33]} 16. Bxc6 {[%emt 0:00:07]} bxc6 {[%emt 0:00:04]} 17. Bxa7 {[%emt 0:00:16]} Rxa7 {[%emt 0:00:20]} 18. Qxc6 {[%emt 0:00:05]} Kf8 {[%emt 0:06:49]} 19. Rac1 {[%emt 0:02:47]} Re7 {[%emt 0:08:15]} 20. Kf1 {[%emt 0:04:59]} g6 {[%emt 0:14:29]} 21. Rxe7 {[%emt 0:07:26]} Qxe7 {[%emt 0:00:08]} 22. Re1 {[%emt 0:00:50]} Qd8 {[%emt 0:00:04]} 23. Re3 {[%emt 0:03:13]} Qb8 {[%emt 0:04:28]} 24. Qc3 {[%emt 0:16:57]} Kg8 {[%emt 0:00:08]} 25. Qf6 {[%emt 0:00:14]} c5 {[%emt 0:06:23]} 26. h4 {[%emt 0:00:56]} Rd7 {[%emt 0:00:44]} 27. h5 {[%emt 0:02:02]} Qd8 {[%emt 0:00:05]} 28. h6 {[%emt 0:00:29]} Qxf6 {[%emt 0:01:21]} 29. Re8# {[%emt 0:00:03]} 1-0

[Event "German Bundesliga 2023-24"]
[Site "Germany"]
[Date "2024.02.04"]
[Round "7.13"]
[White "Kraus, Tomas"]
[Black "Cheng, Bobby"]
[Result "0-1"]
[ECO "D36"]
[WhiteElo "2491"]
[BlackElo "2572"]
[Annotator "ChessBase"]
[PlyCount "74"]
[EventDate "2023.10.20"]
[EventType "team-tourn"]
[EventCountry "GER"]
[SourceTitle "playchess.com"]
[Source "ChessBase"]
[SourceQuality "1"]
[TimeControl "40/6000+30:3000+30"]

1. Nf3 {[%emt 0:00:06]} d5 {[%emt 0:00:36]} 2. d4 {[%emt 0:00:52]} Nf6 {[%emt 0:00:31]} 3. c4 {[%emt 0:00:53]} e6 {[%emt 0:00:09]} 4. cxd5 {[%emt 0:00:39]} exd5 {[%emt 0:00:07]} 5. Nc3 {[%emt 0:00:32]} c6 {[%emt 0:01:27]} 6. Qc2 {[%emt 0:02:43]} g6 {[%emt 0:01:31]} 7. Bg5 {[%emt 0:01:13]} Be7 {[%emt 0:00:13]} 8. e3 {[%emt 0:00:13]} Bf5 {[%emt 0:00:13]} 9. Bd3 {[%emt 0:00:06]} Bxd3 {[%emt 0:00:05]} 10. Qxd3 {[%emt 0:00:04]} Nbd7 {[%emt 0:00:53]} 11. Bh6 {[%emt 0:03:12]} Ng4 {[%emt 0:02:44]} 12. Bf4 {[%emt 0:00:29]} O-O {[%emt 0:00:29]} 13. h4 {[%emt 0:10:35]} Ndf6 {[%emt 0:07:58]} 14. Kf1 {[%emt 0:23:38]} Re8 {[%emt 0:05:23]} 15. g3 {[%emt 0:04:03]} Bd6 {[%emt 0:02:16]} 16. Re1 {[%emt 0:16:42]} Ne4 {[%emt 0:05:19]} 17. Re2 {[%emt 0:01:57]} Bxf4 {[%emt 0:12:22]} 18. gxf4 {[%emt 0:03:04]} Qf6 {[%emt 0:09:43]} 19. Nd1 {[%emt 0:14:26]} Qf5 {[%emt 0:12:42]} 20. Qc2 {[%emt 0:01:06]} h5 {[%emt 0:09:21]} 21. Kg2 {[%emt 0:04:48]} Rac8 {[%emt 0:06:18]} 22. b4 {[%emt 0:04:06]} a5 {[%emt 0:00:24]} 23. a3 {[%emt 0:00:46]} Ra8 {[%emt 0:01:03]} 24. Ne1 {[%emt 0:03:10]} Nh6 {[%emt 0:01:52]} 25. f3 {[%emt 0:01:10]} Nd6 {[%emt 0:00:10]} 26. Qxf5 {[%emt 0:03:12]} Nhxf5 {[%emt 0:00:04]} 27. Nc2 {[%emt 0:00:56]} axb4 {[%emt 0:02:29]} 28. axb4 {[%emt 0:00:01]} Nb5 {[%emt 0:00:13]} 29. Rd2 {[%emt 0:03:04]} Ra2 {[%emt 0:12:19]} 30. Kh3 {[%emt 0:00:16]} Na3 {[%emt 0:01:12]} 31. Rhh2 {[%emt 0:00:10]} Kf8 {[%emt 0:00:20]} 32. e4 {[%emt 0:04:01]} dxe4 {[%emt 0:07:16]} 33. fxe4 {[%emt 0:00:19]} Nxc2 {[%emt 0:00:59]} 34. exf5 {[%emt 0:01:41]} Ra3+ {[%emt 0:00:07]} 35. Kg2 {[%emt 0:00:08]} Ne1+ {[%emt 0:01:04]} 36. Kf2 {[%emt 0:00:43]} Rf3+ {[%emt 0:01:16]} 37. Kg1 {[%emt 0:00:06]} Rxf4 {[%emt 0:00:05]} 0-1

[Event "German Bundesliga 2023-24"]
[Site "Germany"]
[Date "2024.02.03"]
[Round "7.13"]
[White "Kramer, Julian"]
[Black "Hausrath, Daniel"]
[Result "1/2-1/2"]
[ECO "B30"]
[WhiteElo "2470"]
[BlackElo "2462"]
[Annotator "ChessBase"]
[PlyCount "99"]
[EventDate "2023.10.20"]
[EventType "team-tourn"]
[EventCountry "GER"]
[SourceTitle "playchess.com"]
[Source "ChessBase"]
[SourceQuality "1"]
[TimeControl "40/6000+30:3000+30"]

1. e4 {[%emt 0:00:04]} c5 {[%emt 0:00:13]} 2. Nf3 {[%emt 0:00:05]} Nc6 {[%emt 0:00:06]} 3. Bb5 {[%emt 0:00:05]} Nf6 {[%emt 0:00:17]} 4. Bxc6 {[%emt 0:01:32]} dxc6 {[%emt 0:00:44]} 5. d3 {[%emt 0:00:08]} g6 {[%emt 0:01:27]} 6. Be3 {[%emt 0:00:12]} Nd7 {[%emt 0:11:52]} 7. a4 {[%emt 0:05:34]} Bg7 {[%emt 0:02:08]} 8. Qc1 {[%emt 0:00:15]} h6 {[%emt 0:10:19]} 9. a5 {[%emt 0:06:37]} e5 {[%emt 0:03:37]} 10. O-O {[%emt 0:07:11]} Qe7 {[%emt 0:02:36]} 11. c3 {[%emt 0:06:30]} g5 {[%emt 0:07:16]} 12. b4 {[%emt 0:14:35]} cxb4 {[%emt 0:08:56]} 13. cxb4 {[%emt 0:00:08]} Qxb4 {[%emt 0:00:09]} 14. a6 {[%emt 0:08:06]} bxa6 {[%emt 0:07:33]} 15. Na3 {[%emt 0:04:05]} Qd6 {[%emt 0:18:07]} 16. Nc4 {[%emt 0:06:18]} Qe6 {[%emt 0:01:19]} 17. d4 {[%emt 0:15:57]} O-O {[%emt 0:06:26]} 18. dxe5 {[%emt 0:07:04]} c5 {[%emt 0:08:56]} 19. Ra5 {[%emt 0:00:47]} Rb8 {[%emt 0:09:03]} 20. Bxc5 {[%emt 0:01:52]} Nxc5 {[%emt 0:00:14]} 21. Rxc5 {[%emt 0:00:04]} Qg6 {[%emt 0:05:21]} 22. Nd6 {[%emt 0:03:22]} Bg4 {[%emt 0:00:49]} 23. h3 {[%emt 0:07:16]} Bxf3 {[%emt 0:01:38]} 24. gxf3 {[%emt 0:01:49]} Rb3 {[%emt 0:02:04]} 25. Qd1 {[%emt 0:02:19]} Rfb8 {[%emt 0:00:42]} 26. Nf5 {[%emt 0:02:23]} Kh7 {[%emt 0:00:12]} 27. Rd5 {[%emt 0:02:41]} R3b5 {[%emt 0:01:11]} 28. Rd6 {[%emt 0:04:00]} Qh5 {[%emt 0:00:02]} 29. Kg2 {[%emt 0:00:14]} Rxe5 {[%emt 0:00:37]} 30. Rxa6 {[%emt 0:00:34]} Rb7 {[%emt 0:00:46]} 31. Qd8 {[%emt 0:01:09]} Rb3 {[%emt 0:00:25]} 32. Ne3 {[%emt 0:00:54]} Rb7 {[%emt 0:00:41]} 33. Qc8 {[%emt 0:00:30]} Reb5 {[%emt 0:00:31]} 34. Ng4 {[%emt 0:00:31]} R5b6 {[%emt 0:00:25]} 35. Rfa1 {[%emt 0:00:18]} Bxa1 {[%emt 0:00:23]} 36. Rxa1 {[%emt 0:00:04]} Qg6 {[%emt 0:00:12]} 37. e5 {[%emt 0:00:29]} Rb8 {[%emt 0:00:45]} 38. Qc4 {[%emt 0:01:02]} h5 {[%emt 0:00:37]} 39. Nf6+ {[%emt 0:01:32]} Rxf6 {[%emt 0:00:27]} 40. exf6 {[%emt 0:00:04]} Qxf6 {[%emt 0:00:29]} 41. Rxa7 {[%emt 0:50:08]} Kg7 {[%emt 0:02:03]} 42. Ra5 {[%emt 0:00:00]} h4 {[%emt 0:11:04]} 43. Qg4 {[%emt 0:00:00]} Kh6 {[%emt 0:02:20]} 44. Qe4 {[%emt 0:00:00]} Rb2 {[%emt 0:17:07]} 45. Rc5 {[%emt 0:00:00]} Rd2 {[%emt 0:01:51]} 46. Rc6 {[%emt 0:00:00]} Rd6 {[%emt 0:00:11]} 47. Rc4 {[%emt 0:00:00]} Qe6 {[%emt 0:02:42]} 48. f4 {[%emt 0:00:00]} Qxe4+ {[%emt 0:00:52]} 49. Rxe4 {[%emt 0:00:00]} f5 {[%emt 0:00:39]} 50. Re5 {[%emt 0:00:00]} 1/2-1/2

[Event "German Bundesliga 2023-24"]
[Site "Germany"]
[Date "2024.02.04"]
[Round "7.14"]
[White "Pruijssers, Roeland"]
[Black "Ferreira, Jorge Viterbo"]
[Result "1/2-1/2"]
[ECO "C54"]
[WhiteElo "2539"]
[BlackElo "2525"]
[Annotator "ChessBase"]
[PlyCount "55"]
[EventDate "2023.10.20"]
[EventType "team-tourn"]
[EventCountry "GER"]
[SourceTitle "playchess.com"]
[Source "ChessBase"]
[SourceQuality "1"]
[TimeControl "40/6000+30:3000+30"]

1. e4 {[%emt 0:00:08]} e5 {[%emt 0:00:11]} 2. Nf3 {[%emt 0:00:10]} Nc6 {[%emt 0:00:12]} 3. Bc4 {[%emt 0:00:09]} Nf6 {[%emt 0:00:10]} 4. d3 {[%emt 0:00:08]} Bc5 {[%emt 0:00:11]} 5. O-O {[%emt 0:01:12]} d6 {[%emt 0:01:43]} 6. c3 {[%emt 0:00:55]} a6 {[%emt 0:02:29]} 7. Bb3 {[%emt 0:01:18]} Ba7 {[%emt 0:03:35]} 8. Re1 {[%emt 0:02:32]} O-O {[%emt 0:05:55]} 9. h3 {[%emt 0:01:55]} h6 {[%emt 0:02:20]} 10. Nbd2 {[%emt 0:00:24]} Be6 {[%emt 0:01:02]} 11. Bc2 {[%emt 0:11:02]} Re8 {[%emt 0:07:28]} 12. Nf1 {[%emt 0:00:17]} d5 {[%emt 0:01:10]} 13. exd5 {[%emt 0:01:12]} Bxd5 {[%emt 0:12:51]} 14. Ng3 {[%emt 0:00:22]} Qd6 {[%emt 0:03:16]} 15. Nh4 {[%emt 0:13:21]} Ne7 {[%emt 0:07:36]} 16. Be3 {[%emt 0:05:19]} Bxe3 {[%emt 0:09:15]} 17. Rxe3 {[%emt 0:00:13]} Bc6 {[%emt 0:10:54]} 18. Ngf5 {[%emt 0:38:29]} Nxf5 {[%emt 0:05:56]} 19. Nxf5 {[%emt 0:01:00]} Qf8 {[%emt 0:03:10]} 20. d4 {[%emt 0:03:50]} exd4 {[%emt 0:11:42]} 21. Qxd4 {[%emt 0:01:44]} Rxe3 {[%emt 0:01:09]} 22. Qxe3 {[%emt 0:00:09]} Bd7 {[%emt 0:00:58]} 23. Ne7+ {[%emt 0:09:40]} Kh8 {[%emt 0:00:11]} 24. Re1 {[%emt 0:00:24]} Re8 {[%emt 0:04:24]} 25. Qe5 {[%emt 0:02:01]} Ng8 {[%emt 0:02:59]} 26. Qe4 {[%emt 0:00:08]} Nf6 {[%emt 0:00:05]} 27. Qe5 {[%emt 0:00:35]} Ng8 {[%emt 0:00:29]} 28. Qe4 {[%emt 0:00:07]} 1/2-1/2

[Event "German Bundesliga 2023-24"]
[Site "Germany"]
[Date "2024.02.03"]
[Round "7.14"]
[White "Saltaev, Mihail"]
[Black "Ftacnik, Lubomir"]
[Result "0-1"]
[ECO "B88"]
[WhiteElo "2441"]
[BlackElo "2455"]
[Annotator "ChessBase"]
[PlyCount "80"]
[EventDate "2023.10.20"]
[EventType "team-tourn"]
[EventCountry "GER"]
[SourceTitle "playchess.com"]
[Source "ChessBase"]
[SourceQuality "1"]
[TimeControl "40/6000+30:3000+30"]

1. e4 {[%emt 0:00:03]} c5 {[%emt 0:00:09]} 2. Nf3 {[%emt 0:00:10]} d6 {[%emt 0:00:07]} 3. d4 {[%emt 0:00:16]} cxd4 {[%emt 0:00:08]} 4. Nxd4 {[%emt 0:00:07]} Nf6 {[%emt 0:00:08]} 5. Nc3 {[%emt 0:00:07]} a6 {[%emt 0:00:07]} 6. a4 {[%emt 0:00:22]} Nc6 {[%emt 0:01:00]} 7. Bc4 {[%emt 0:02:32]} e6 {[%emt 0:01:27]} 8. O-O {[%emt 0:03:23]} Be7 {[%emt 0:00:44]} 9. Be3 {[%emt 0:04:07]} O-O {[%emt 0:03:44]} 10. Nxc6 {[%emt 0:04:41]} bxc6 {[%emt 0:00:09]} 11. a5 {[%emt 0:00:04]} d5 {[%emt 0:05:00]} 12. Bb6 {[%emt 0:01:05]} Qd6 {[%emt 0:06:06]} 13. Bd3 {[%emt 0:01:34]} Nd7 {[%emt 0:10:53]} 14. Na4 {[%emt 0:03:02]} Bb7 {[%emt 0:02:49]} 15. c4 {[%emt 0:10:42]} c5 {[%emt 0:07:11]} 16. exd5 {[%emt 0:05:05]} exd5 {[%emt 0:00:08]} 17. Qc2 {[%emt 0:00:10]} Qh6 {[%emt 0:17:41]} 18. Bc7 {[%emt 0:01:43]} Qc6 {[%emt 0:20:29]} 19. Rfe1 {[%emt 0:00:42]} Rae8 {[%emt 0:05:19]} 20. Bxh7+ {[%emt 0:14:50]} Kh8 {[%emt 0:00:07]} 21. Re3 {[%emt 0:00:06]} g6 {[%emt 0:05:07]} 22. Rh3 {[%emt 0:05:08]} d4 {[%emt 0:05:33]} 23. Bxg6+ {[%emt 0:02:45]} Kg7 {[%emt 0:00:25]} 24. Be4 {[%emt 0:03:43]} Qxe4 {[%emt 0:01:23]} 25. Rg3+ {[%emt 0:00:08]} Kh8 {[%emt 0:05:31]} 26. Rh3+ {[%emt 0:03:08]} Kg8 {[%emt 0:00:15]} 27. Rg3+ {[%emt 0:00:17]} Kh8 {[%emt 0:00:02]} 28. Qd2 {[%emt 0:22:39]} Qc6 {[%emt 0:01:28]} 29. Qf4 {[%emt 0:14:26]} f5 {[%emt 0:01:20]} 30. Raa3 {[%emt 0:00:11]} Rg8 {[%emt 0:05:41]} 31. Rh3+ {[%emt 0:01:12]} Kg7 {[%emt 0:00:02]} 32. Rag3+ {[%emt 0:00:12]} Kf8 {[%emt 0:01:44]} 33. Rxg8+ {[%emt 0:02:32]} Kxg8 {[%emt 0:00:02]} 34. Qg3+ {[%emt 0:00:27]} Kf7 {[%emt 0:00:53]} 35. Rh7+ {[%emt 0:01:44]} Ke6 {[%emt 0:00:08]} 36. Nb6 {[%emt 0:02:38]} Nxb6 {[%emt 0:01:06]} 37. Rh6+ {[%emt 0:01:23]} Bf6 {[%emt 0:00:28]} 38. axb6 {[%emt 0:00:10]} Kd7 {[%emt 0:01:09]} 39. h4 {[%emt 0:00:11]} Kc8 {[%emt 0:01:12]} 40. Be5 {[%emt 0:01:47]} Rxe5 {[%emt 0:01:05]} 0-1

[Event "German Bundesliga 2023-24"]
[Site "Germany"]
[Date "2024.02.03"]
[Round "7.14"]
[White "Hampel, Felix"]
[Black "Laurent-Paoli, Pierre"]
[Result "0-1"]
[ECO "A17"]
[WhiteElo "2298"]
[BlackElo "2540"]
[Annotator "ChessBase"]
[PlyCount "54"]
[EventDate "2023.10.20"]
[EventType "team-tourn"]
[EventCountry "GER"]
[SourceTitle "playchess.com"]
[Source "ChessBase"]
[SourceQuality "1"]
[TimeControl "40/6000+30:3000+30"]

1. Nf3 {[%emt 0:00:06]} d5 {[%emt 0:01:25]} 2. e3 {[%emt 0:00:07]} Nf6 {[%emt 0:00:31]} 3. c4 {[%emt 0:00:07]} e6 {[%emt 0:01:33]} 4. Nc3 {[%emt 0:00:13]} b6 {[%emt 0:02:01]} 5. b3 {[%emt 0:00:34]} Bb7 {[%emt 0:03:37]} 6. Bb2 {[%emt 0:00:34]} Nbd7 {[%emt 0:00:33]} 7. Rc1 {[%emt 0:04:31]} a6 {[%emt 0:02:45]} 8. cxd5 {[%emt 0:00:27]} exd5 {[%emt 0:00:37]} 9. Qc2 {[%emt 0:16:56]} Bd6 {[%emt 0:05:09]} 10. Ne2 {[%emt 0:03:29]} c5 {[%emt 0:03:44]} 11. Ng3 {[%emt 0:09:13]} g6 {[%emt 0:01:36]} 12. Be2 {[%emt 0:01:08]} O-O {[%emt 0:07:34]} 13. d4 {[%emt 0:12:45]} Rc8 {[%emt 0:08:46]} 14. dxc5 {[%emt 0:02:18]} Rxc5 {[%emt 0:01:14]} 15. Qd2 {[%emt 0:04:09]} Rxc1+ {[%emt 0:00:43]} 16. Bxc1 {[%emt 0:01:11]} Qe7 {[%emt 0:03:46]} 17. O-O {[%emt 0:04:28]} Ne4 {[%emt 0:02:50]} 18. Qd4 {[%emt 0:01:27]} Bc5 {[%emt 0:05:01]} 19. Qa1 {[%emt 0:05:43]} h5 {[%emt 0:06:44]} 20. Rd1 {[%emt 0:04:13]} Ndf6 {[%emt 0:05:28]} 21. Ne5 {[%emt 0:04:47]} Re8 {[%emt 0:19:59]} 22. Bb2 {[%emt 0:01:56]} Nxf2 {[%emt 0:07:33]} 23. Kxf2 {[%emt 0:02:22]} Bd6 {[%emt 0:00:08]} 24. e4 {[%emt 0:11:33]} Bxe5 {[%emt 0:07:14]} 25. Bxe5 {[%emt 0:00:18]} Qxe5 {[%emt 0:00:03]} 26. Qxe5 {[%emt 0:07:01]} Rxe5 {[%emt 0:00:04]} 27. Rc1 {[%emt 0:06:18]} h4 {[%emt 0:01:06]} 0-1

[Event "German Bundesliga 2023-24"]
[Site "Germany"]
[Date "2024.02.03"]
[Round "7.15"]
[White "Grigoriants, Sergey"]
[Black "Voege, Tobias"]
[Result "1/2-1/2"]
[ECO "C11"]
[WhiteElo "2543"]
[BlackElo "2283"]
[Annotator "ChessBase"]
[PlyCount "41"]
[EventDate "2023.10.20"]
[EventType "team-tourn"]
[EventCountry "GER"]
[SourceTitle "playchess.com"]
[Source "ChessBase"]
[SourceQuality "1"]
[TimeControl "40/6000+30:3000+30"]

1. e4 {[%emt 0:00:11]} e6 {[%emt 0:00:06]} 2. d4 {[%emt 0:00:34]} d5 {[%emt 0:00:07]} 3. Nc3 {[%emt 0:00:51]} Nf6 {[%emt 0:00:10]} 4. e5 {[%emt 0:00:44]} Nfd7 {[%emt 0:00:06]} 5. f4 {[%emt 0:00:31]} c5 {[%emt 0:00:06]} 6. Nf3 {[%emt 0:00:08]} Nc6 {[%emt 0:00:08]} 7. Be3 {[%emt 0:01:11]} cxd4 {[%emt 0:00:40]} 8. Nxd4 {[%emt 0:00:11]} Qb6 {[%emt 0:00:12]} 9. Qd2 {[%emt 0:03:24]} Qxb2 {[%emt 0:00:26]} 10. Rb1 {[%emt 0:00:12]} Qa3 {[%emt 0:00:07]} 11. Bb5 {[%emt 0:00:57]} Nxd4 {[%emt 0:00:36]} 12. Bxd4 {[%emt 0:00:12]} a6 {[%emt 0:00:19]} 13. Bxd7+ {[%emt 0:00:51]} Bxd7 {[%emt 0:00:07]} 14. Rb3 {[%emt 0:00:41]} Qe7 {[%emt 0:00:09]} 15. O-O {[%emt 0:00:40]} b5 {[%emt 0:29:12]} 16. f5 {[%emt 0:03:00]} Qd8 {[%emt 0:08:07]} 17. Qf2 {[%emt 0:52:09]} Be7 {[%emt 0:38:46]} 18. Qg3 {[%emt 0:12:48]} g6 {[%emt 0:05:13]} 19. Nxd5 {[%emt 0:05:58]} Bc6 {[%emt 0:05:57]} 20. Nxe7 {[%emt 0:01:58]} Qxd4+ {[%emt 0:02:22]} 21. Kh1 {[%emt 0:00:12]} 1/2-1/2

[Event "German Bundesliga 2023-24"]
[Site "Germany"]
[Date "2024.02.03"]
[Round "7.15"]
[White "Heinemann, Thies"]
[Black "Buckels, Valentin"]
[Result "0-1"]
[ECO "C47"]
[WhiteElo "2438"]
[BlackElo "2429"]
[Annotator "ChessBase"]
[PlyCount "100"]
[EventDate "2023.10.20"]
[EventType "team-tourn"]
[EventCountry "GER"]
[SourceTitle "playchess.com"]
[Source "ChessBase"]
[SourceQuality "1"]
[TimeControl "40/6000+30:3000+30"]

1. e4 {[%emt 0:00:03]} e5 {[%emt 0:00:10]} 2. Nf3 {[%emt 0:00:07]} Nf6 {[%emt 0:00:13]} 3. Nc3 {[%emt 0:01:05]} Nc6 {[%emt 0:00:15]} 4. d4 {[%emt 0:00:06]} exd4 {[%emt 0:00:13]} 5. Nxd4 {[%emt 0:00:09]} Nxe4 {[%emt 0:00:33]} 6. Nxe4 {[%emt 0:11:00]} Qe7 {[%emt 0:00:26]} 7. f3 {[%emt 0:10:08]} d5 {[%emt 0:00:41]} 8. Bb5 {[%emt 0:00:49]} Bd7 {[%emt 0:00:21]} 9. O-O {[%emt 0:08:23]} dxe4 {[%emt 0:02:08]} 10. Bxc6 {[%emt 0:03:35]} bxc6 {[%emt 0:00:18]} 11. Re1 {[%emt 0:02:43]} O-O-O {[%emt 0:00:09]} 12. Rxe4 {[%emt 0:01:00]} Qb4 {[%emt 0:00:20]} 13. Nb3 {[%emt 0:05:02]} Qb7 {[%emt 0:00:24]} 14. Be3 {[%emt 0:09:11]} Bf5 {[%emt 0:04:25]} 15. Rd4 {[%emt 0:01:06]} Bd6 {[%emt 0:00:13]} 16. Qe2 {[%emt 0:06:09]} Rhe8 {[%emt 0:12:15]} 17. Rad1 {[%emt 0:04:40]} Qb5 {[%emt 0:06:14]} 18. Qd2 {[%emt 0:15:35]} Bxc2 {[%emt 0:07:01]} 19. Qxc2 {[%emt 0:03:51]} Rxe3 {[%emt 0:00:07]} 20. Kf2 {[%emt 0:14:36]} Rde8 {[%emt 0:10:01]} 21. R1d2 {[%emt 0:01:02]} Re1 {[%emt 0:07:22]} 22. Qc4 {[%emt 0:02:43]} Bxh2 {[%emt 0:04:28]} 23. Rd8+ {[%emt 0:05:18]} Rxd8 {[%emt 0:00:31]} 24. Rxd8+ {[%emt 0:00:12]} Kxd8 {[%emt 0:00:06]} 25. Qd4+ {[%emt 0:00:34]} Qd5 {[%emt 0:03:06]} 26. Kxe1 {[%emt 0:00:17]} Qxd4 {[%emt 0:00:16]} 27. Nxd4 {[%emt 0:00:07]} Kd7 {[%emt 0:00:05]} 28. b3 {[%emt 0:01:02]} Bg1 {[%emt 0:02:21]} 29. Ne2 {[%emt 0:01:40]} Be3 {[%emt 0:01:07]} 30. Kd1 {[%emt 0:00:23]} Ke6 {[%emt 0:05:16]} 31. Kc2 {[%emt 0:00:11]} Ke5 {[%emt 0:00:43]} 32. Kd3 {[%emt 0:00:31]} Bf2 {[%emt 0:00:14]} 33. Nc3 {[%emt 0:01:34]} f5 {[%emt 0:03:25]} 34. Ne2 {[%emt 0:01:30]} g5 {[%emt 0:08:04]} 35. Kd2 {[%emt 0:00:08]} h5 {[%emt 0:05:10]} 36. Nc1 {[%emt 0:00:29]} Bc5 {[%emt 0:06:42]} 37. Nd3+ {[%emt 0:00:57]} Kd4 {[%emt 0:00:30]} 38. Nf2 {[%emt 0:00:46]} Bd6 {[%emt 0:00:52]} 39. Ke2 {[%emt 0:00:42]} c5 {[%emt 0:03:21]} 40. Nd1 {[%emt 0:00:32]} c4 {[%emt 0:03:12]} 41. bxc4 {[%emt 0:03:30]} f4 {[%emt 0:01:08]} 42. Nf2 {[%emt 0:02:59]} Kxc4 {[%emt 0:00:17]} 43. Ne4 {[%emt 0:01:32]} Be7 {[%emt 0:00:07]} 44. Kd2 {[%emt 0:00:47]} Kd4 {[%emt 0:04:56]} 45. Nf2 {[%emt 0:02:21]} a5 {[%emt 0:04:23]} 46. Nd3 {[%emt 0:03:17]} g4 {[%emt 0:03:05]} 47. Nc1 {[%emt 0:17:31]} gxf3 {[%emt 0:01:51]} 48. gxf3 {[%emt 0:00:12]} Bb4+ {[%emt 0:00:27]} 49. Ke2 {[%emt 0:00:35]} Kc3 {[%emt 0:00:22]} 50. Nd3 {[%emt 0:01:55]} Bd6 {[%emt 0:00:07]} 0-1